fUST/lending_fUST_20240906
["ID","MTS","AMOUNT","RATE_DAILY","PERIOD"]
[337331882,1725607843640,-500.0,0.00019983,2]
[337331883,1725607843649,-500.0,0.00019983,2]
[337331884,1725607843661,-500.0,0.00019983,2]
[337331885,1725607843675,-500.0,0.00019983,2]
[337331886,1725607843685,-500.0,0.00019983,2]
[337331887,1725607843696,-500.0,0.00019983,2]
[337331888,1725607843706,-500.0,0.00019983,2]
[337331889,1725607843715,-500.0,0.00019983,2]
[337331890,1725607843726,-500.0,0.00019983,2]
[337331891,1725607843736,-188.24012379,0.00019983,2]
[337331892,1725607843745,-500.0,0.00019983,2]
[337331893,1725607843756,-500.0,0.00019983,2]
[337331894,1725607843765,-500.0,0.00019983,2]
[337331895,1725607843776,-500.0,0.00019983,2]
[337331896,1725607843786,-500.0,0.00019983,2]
[337331897,1725607843796,-1920.26,0.00019983,2]
[337331898,1725607843806,-500.0,0.00019983,2]
[337331899,1725607843816,-500.0,0.00019983,2]
[337331900,1725607843825,-670.15,0.00019983,2]
[337331901,1725607843835,-500.0,0.00019983,2]
[337331902,1725607843845,-500.0,0.00019983,2]
[337331903,1725607843855,-500.0,0.00019983,2]
[337331904,1725607843865,-500.0,0.00019983,2]
[337331905,1725607843876,-500.0,0.00019983,2]
[337331906,1725607843885,-1654.31,0.00019983,2]
[337331907,1725607843895,-500.0,0.00019983,2]
[337331908,1725607843907,-500.0,0.00019983,2]
[337331909,1725607843917,-500.0,0.00019983,2]
[337331910,1725607843926,-500.0,0.00019983,2]
[337331911,1725607843937,-501.17211331,0.00019983,2]
[337331912,1725607843951,-500.0,0.00019983,2]
[337331913,1725607843961,-500.0,0.00019983,2]
[337331914,1725607843970,-500.0,0.00019983,2]
[337331915,1725607843980,-500.0,0.00019983,2]
[337331916,1725607843990,-500.0,0.00019983,2]
[337331917,1725607844000,-500.0,0.00019983,2]
[337331918,1725607844010,-500.0,0.00019983,2]
[337331919,1725607844021,-500.0,0.00019983,2]
[337331920,1725607844030,-500.0,0.00019983,2]
[337331921,1725607844040,-500.0,0.00019983,2]
[337331922,1725607844050,-792.07,0.00019983,2]
[337331923,1725607844059,-500.0,0.00019983,2]
[337331924,1725607844069,-500.0,0.00019983,2]
[337331925,1725607844078,-647.12,0.00019983,2]
[337331926,1725607844088,-500.0,0.00019983,2]
[337331927,1725607844098,-500.0,0.00019983,2]
[337331928,1725607844108,-196.48896559,0.00019983,2]
[337331929,1725607844117,-500.0,0.00019983,2]
[337331930,1725607844127,-500.0,0.00019983,2]
[337331931,1725607844137,-500.0,0.00019983,2]
[337331932,1725607844146,-500.0,0.00019983,2]
[337331933,1725607844159,-524.97655021,0.00019983,2]
[337331934,1725607844168,-505.68583098,0.00019983,2]
[337331935,1725607844179,-500.0,0.00019983,2]
[337331936,1725607844188,-500.0,0.00019983,2]
[337331937,1725607844197,-954.78,0.00019983,2]
[337331938,1725607844207,-500.0,0.00019983,2]
[337331939,1725607844216,-500.0,0.00019983,2]
[337331940,1725607844226,-650.01,0.00019983,2]
[337331941,1725607844235,-500.0,0.00019983,2]
[337331942,1725607844245,-500.0,0.00019983,2]
[337331943,1725607844255,-500.0,0.00019983,2]
[337331944,1725607844264,-391.33040984,0.00019983,2]
[337331945,1725607844273,-378.9484028,0.00019983,2]
[337331946,1725607844282,-1197.89,0.00019983,2]
[337331947,1725607844292,-504.969156,0.00019983,2]
[337331948,1725607844301,-500.0,0.00019983,2]
[337331949,1725607844310,-542.49912843,0.00019983,2]
[337331950,1725607844320,-500.0,0.00019983,2]
[337331951,1725607844329,-500.0,0.00019983,2]
[337331952,1725607844340,-500.0,0.00019983,2]
[337331953,1725607844350,-2313.99,0.00019983,2]
[337331954,1725607844359,-500.0,0.00019983,2]
[337331955,1725607844369,-1488.88,0.00019983,2]
[337331956,1725607844379,-353.05120174,0.00019983,2]
[337331958,1725607844389,-500.0,0.00019983,2]
[337331960,1725607844398,-571.68,0.00019983,2]
[337331961,1725607844410,-500.0,0.00019983,2]
[337331963,1725607844420,-1401.47,0.00019983,2]
[337331965,1725607844429,-500.0,0.00019983,2]
[337331967,1725607844439,-502.67528363,0.00019983,2]
[337331968,1725607844449,-500.0,0.00019983,2]
[337331969,1725607844459,-1270.02,0.00019983,2]
[337331970,1725607844468,-500.0,0.00019983,2]
[337331971,1725607844478,-500.0,0.00019983,2]
[337331972,1725607844487,-500.0,0.00019983,2]
[337331973,1725607844496,-500.0,0.00019983,2]
[337331974,1725607844506,-500.0,0.00019983,2]
[337331975,1725607844516,-500.0,0.00019983,2]
[337331976,1725607844525,-500.0,0.00019983,2]
[337331977,1725607844535,-500.0,0.00019983,2]
[337331978,1725607844544,-500.0,0.00019983,2]
[337331979,1725607844554,-500.0,0.00019983,2]
[337331980,1725607844564,-500.0,0.00019983,2]
[337331981,1725607844573,-500.0,0.00019983,2]
[337331982,1725607844733,-452.77674134,0.00019983,2]
[337331983,1725607844743,-500.0,0.00019983,2]
[337331984,1725607844753,-500.0,0.00019983,2]
[337331985,1725607844762,-500.0,0.00019983,2]
[337331986,1725607844772,-500.0,0.00019983,2]
[337331987,1725607844781,-500.0,0.00019983,2]
[337331988,1725607844791,-500.0,0.00019983,2]
[337331989,1725607844800,-500.0,0.00019983,2]
[337331990,1725607844810,-500.0,0.00019983,2]
[337331991,1725607844819,-500.0,0.00019983,2]
[337331992,1725607844829,-500.0,0.00019983,2]
[337331993,1725607844838,-500.0,0.00019983,2]
[337331994,1725607844848,-500.0,0.00019983,2]
[337331995,1725607844857,-500.0,0.00019983,2]
[337331996,1725607844866,-500.0,0.00019983,2]
[337331997,1725607844876,-175.41172744,0.00019983,2]
[337331998,1725607844885,-500.0,0.00019983,2]
[337331999,1725607844895,-500.0,0.00019983,2]
[337332000,1725607844905,-274.1129374,0.00019983,2]
[337332001,1725607844914,-500.0,0.00019983,2]
[337332002,1725607844923,-500.0,0.00019983,2]
[337332003,1725607844933,-500.0,0.00019983,2]
[337332004,1725607844945,-500.0,0.00019983,2]
[337332005,1725607844954,-500.0,0.00019983,2]
[337332006,1725607844963,-511.25464496,0.00019983,2]
[337332007,1725607844973,-500.0,0.00019983,2]
[337332008,1725607844983,-500.0,0.00019983,2]
[337332009,1725607844992,-3330.93,0.00019983,2]
[337332010,1725607845002,-587.94744208,0.00019983,2]
[337332011,1725607845012,-500.0,0.00019983,2]
[337332012,1725607845023,-500.0,0.00019983,2]
[337332013,1725607845032,-500.0,0.00019983,2]
[337332014,1725607845042,-500.0,0.00019983,2]
[337332015,1725607845051,-504.89324163,0.00019983,2]
[337332016,1725607845060,-500.0,0.00019983,2]
[337332017,1725607845069,-500.0,0.00019983,2]
[337332018,1725607845079,-500.0,0.00019983,2]
[337332019,1725607845088,-604.53,0.00019983,2]
[337332020,1725607845097,-500.0,0.00019983,2]
[337332021,1725607845107,-500.0,0.00019983,2]
[337332022,1725607845116,-500.0,0.00019983,2]
[337332023,1725607845125,-500.0,0.00019983,2]
[337332024,1725607845135,-500.0,0.00019983,2]
[337332025,1725607845144,-500.0,0.00019983,2]
[337332026,1725607845156,-517.15,0.00019983,2]
[337332027,1725607845165,-776.82,0.00019983,2]
[337332028,1725607845174,-500.0,0.00019983,2]
[337332029,1725607845184,-1000.43,0.00019983,2]
[337332030,1725607845193,-500.0,0.00019983,2]
[337332031,1725607845203,-1390.7,0.00019983,2]
[337332032,1725607845212,-500.0,0.00019983,2]
[337332033,1725607845221,-500.0,0.00019983,2]
[337332034,1725607845230,-197.69849944,0.00019983,2]
[337332035,1725607845239,-2298.58,0.00019983,2]
[337332036,1725607845249,-500.0,0.00019983,2]
[337332037,1725607845259,-1066.63,0.00019983,2]
[337332038,1725607845268,-500.0,0.00019983,2]
[337332039,1725607845277,-500.0,0.00019983,2]
[337332040,1725607845288,-500.0,0.00019983,2]
[337332041,1725607845297,-560.55232548,0.00019983,2]
[337332042,1725607845307,-251.88415436,0.00019983,2]
[337332043,1725607845316,-624.71657563,0.00019983,2]
[337332044,1725607845326,-500.0,0.00019983,2]
[337332045,1725607845336,-500.0,0.00019983,2]
[337332046,1725607845345,-500.0,0.00019983,2]
[337332048,1725607845355,-500.0,0.00019983,2]
[337332049,1725607845364,-500.0,0.00019983,2]
[337332050,1725607845374,-1347.33,0.00019983,2]
[337332051,1725607845383,-500.0,0.00019983,2]
[337332053,1725607845392,-500.0,0.00019983,2]
[337332054,1725607845401,-500.0,0.00019983,2]
[337332055,1725607845416,-500.0,0.00019983,2]
[337332057,1725607845426,-501.58541736,0.00019983,2]
[337332059,1725607845435,-500.0,0.00019983,2]
[337332060,1725607845444,-500.0,0.00019983,2]
[337332062,1725607845453,-500.0,0.00019983,2]
[337332063,1725607845462,-569.17,0.00019983,2]
[337332065,1725607845471,-676.17,0.00019983,2]
[337332066,1725607845480,-569.17,0.00019983,2]
[337332068,1725607845490,-500.0,0.00019983,2]
[337332070,1725607845499,-1161.9,0.00019983,2]
[337332071,1725607845510,-1670.61,0.00019983,2]
[337332073,1725607845519,-500.0,0.00019983,2]
[337332075,1725607845529,-1657.53,0.00019983,2]
[337332076,1725607845538,-501.44,0.00019983,2]
[337332078,1725607845547,-500.0,0.00019983,2]
[337332080,1725607845556,-500.0,0.00019983,2]
[337332082,1725607845565,-1001.02,0.00019983,2]
[337332083,1725607845574,-500.0,0.00019983,2]
[337332085,1725607845584,-507.99321525,0.00019983,2]
[337332087,1725607845593,-2169.67,0.00019983,2]
[337332088,1725607845603,-500.0,0.00019983,2]
[337332090,1725607845612,-500.0,0.00019983,2]
[337332091,1725607845621,-500.0,0.00019983,2]
[337332093,1725607845631,-500.0,0.00019983,2]
[337332095,1725607845640,-500.0,0.00019983,2]
[337332097,1725607845650,-2180.59,0.00019983,2]
[337332098,1725607845661,-500.0,0.00019983,2]
[337332100,1725607845672,-502.94031787,0.00019983,2]
[337332102,1725607845681,-500.0,0.00019983,2]
[337332104,1725607845691,-500.0,0.00019983,2]
[337332106,1725607845700,-500.0,0.00019983,2]
[337332107,1725607845709,-39419.88,0.00019983,2]
[337332108,1725607845719,-500.0,0.00019983,2]
[337332109,1725607845728,-500.0,0.00019983,2]
[337332110,1725607845737,-970.99,0.00019983,2]
[337332112,1725607845747,-1014.59,0.00019983,2]
[337332113,1725607845756,-500.0,0.00019983,2]
[337332115,1725607845766,-500.0,0.00019983,2]
[337332117,1725607845775,-500.0,0.00019983,2]
[337332118,1725607845786,-500.0,0.00019983,2]
[337332120,1725607845796,-500.0,0.00019983,2]
[337332122,1725607845805,-500.0,0.00019983,2]
[337332123,1725607845815,-500.0,0.00019983,2]
[337332124,1725607845824,-249.75890712,0.00019983,2]
[337332126,1725607845833,-500.0,0.00019983,2]
[337332128,1725607845843,-500.0,0.00019983,2]
[337332129,1725607845852,-500.0,0.00019983,2]
[337332130,1725607845861,-500.0,0.00019983,2]
[337332131,1725607845870,-500.0,0.00019983,2]
[337332133,1725607845879,-605.30508296,0.00019983,2]
[337332135,1725607845889,-1247.14,0.00019983,2]
[337332136,1725607845898,-500.0,0.00019983,2]
[337332138,1725607845910,-500.0,0.00019983,2]
[337332139,1725607845919,-500.0,0.00019983,2]
[337332140,1725607845929,-500.0,0.00019983,2]
[337332141,1725607845938,-500.0,0.00019983,2]
[337332142,1725607845950,-500.0,0.00019983,2]
[337332143,1725607845959,-500.0,0.00019983,2]
[337332144,1725607845969,-500.0,0.00019983,2]
[337332145,1725607845978,-504.64337847,0.00019983,2]
[337332146,1725607845989,-502.7179879,0.00019983,2]
[337332147,1725607845998,-500.0,0.00019983,2]
[337332149,1725607846007,-502.59503424,0.00019983,2]
[337332150,1725607846018,-504.09422524,0.00019983,2]
[337332152,1725607846027,-601.38807574,0.00019983,2]
[337332153,1725607846036,-198.65665816,0.00019983,2]
[337332155,1725607846045,-500.0,0.00019983,2]
[337332157,1725607846054,-500.0,0.00019983,2]
[337332159,1725607846064,-1351.34,0.00019983,2]
[337332160,1725607846073,-500.0,0.00019983,2]
[337332161,1725607846082,-500.0,0.00019983,2]
[337332162,1725607846091,-500.0,0.00019983,2]
[337332163,1725607846100,-500.0,0.00019983,2]
[337332164,1725607846111,-463.24895093,0.00019983,2]
[337332165,1725607846120,-500.0,0.00019983,2]
[337332166,1725607846129,-930.25,0.00019983,2]
[337332167,1725607846138,-680.71,0.00019983,2]
[337332168,1725607846148,-500.0,0.00019983,2]
[337332170,1725607846157,-500.0,0.00019983,2]
[337332172,1725607846166,-500.0,0.00019983,2]
[337332174,1725607846176,-500.0,0.00019983,2]
[337332175,1725607846185,-500.0,0.00019983,2]
[337332176,1725607846195,-500.0,0.00019983,2]
[337332177,1725607846204,-500.0,0.00019983,2]
[337332178,1725607846213,-500.0,0.00019983,2]
[337332179,1725607846222,-500.0,0.00019983,2]
[337332180,1725607846231,-500.0,0.00019983,2]
[337332181,1725607846240,-443.62,0.00019983,2]
[337332182,1725607846250,-500.0,0.00019983,2]
[337332183,1725607846259,-500.0,0.00019983,2]
[337332184,1725607846268,-2476.47,0.00019983,2]
[337332185,1725607846278,-500.0,0.00019983,2]
[337332186,1725607846287,-501.95826266,0.00019983,2]
[337332187,1725607846298,-216.55667137,0.00019983,2]
[337332188,1725607846309,-505.09682914,0.00019983,2]
[337332189,1725607846318,-500.0,0.00019983,2]
[337332190,1725607846328,-502.65877379,0.00019983,2]
[337332191,1725607846337,-960.27,0.00019983,2]
[337332192,1725607846347,-500.0,0.00019983,2]
[337332193,1725607846356,-500.0,0.00019983,2]
[337332194,1725607846366,-500.0,0.00019983,2]
[337332195,1725607846375,-500.0,0.00019983,2]
[337332196,1725607846385,-500.0,0.00019983,2]
[337332197,1725607846394,-511.04716829,0.00019983,2]
[337332198,1725607846404,-500.0,0.00019983,2]
[337332199,1725607846425,-1397.22,0.00019983,2]
[337332200,1725607846435,-500.0,0.00019983,2]
[337332201,1725607846444,-500.0,0.00019983,2]
[337332202,1725607846454,-500.0,0.00019983,2]
[337332203,1725607846464,-1497.03,0.00019983,2]
[337332204,1725607846474,-1231.32,0.00019983,2]
[337332205,1725607846484,-500.0,0.00019983,2]
[337332206,1725607846497,-500.0,0.00019983,2]
[337332207,1725607846506,-500.0,0.00019983,2]
[337332208,1725607846515,-1735.42,0.00019983,2]
[337332209,1725607846525,-500.0,0.00019983,2]
[337332210,1725607846534,-500.0,0.00019983,2]
[337332211,1725607846544,-501.04417737,0.00019983,2]
[337332212,1725607846554,-500.0,0.00019983,2]
[337332213,1725607846564,-500.0,0.00019983,2]
[337332214,1725607846574,-500.0,0.00019983,2]
[337332215,1725607846583,-500.0,0.00019983,2]
[337332216,1725607846593,-500.0,0.00019983,2]
[337332217,1725607846603,-500.0,0.00019983,2]
[337332218,1725607846612,-500.0,0.00019983,2]
[337332219,1725607846623,-500.0,0.00019983,2]
[337332220,1725607846632,-500.0,0.00019983,2]
[337332221,1725607846641,-500.0,0.00019983,2]
[337332222,1725607846651,-500.0,0.00019983,2]
[337332223,1725607846667,-500.0,0.00019983,2]
[337332224,1725607846677,-502.87,0.00019983,2]
[337332225,1725607846687,-500.0,0.00019983,2]
[337332226,1725607846697,-500.0,0.00019983,2]
[337332227,1725607846707,-1005.35,0.00019983,2]
[337332228,1725607846718,-620.18,0.00019983,2]
[337332229,1725607846728,-1857.26,0.00019983,2]
[337332230,1725607846738,-500.0,0.00019983,2]
[337332231,1725607846747,-872.24,0.00019983,2]
[337332232,1725607846757,-500.0,0.00019983,2]
[337332233,1725607846767,-500.0,0.00019983,2]
[337332234,1725607846775,-472.0549482,0.00019983,2]
[337332235,1725607847178,-279.7,0.00019953,3]
[337332236,1725607847188,-500.0,0.00019963,2]
[337332237,1725607847197,-500.0,0.00019982,2]
[337332238,1725607847207,-27.9450518,0.00019983,2]
[337332239,1725607847216,-500.0,0.00019983,2]
[337332240,1725607847225,-458.70263392,0.00019983,2]
[337332241,1725607847236,-778.05,0.00019983,2]
[337332242,1725607847246,-500.0,0.00019983,2]
[337332243,1725607847255,-500.0,0.00019983,2]
[337332244,1725607847265,-500.0,0.00019983,2]
[337332245,1725607847275,-500.0,0.00019983,2]
[337332246,1725607847285,-500.0,0.00019983,2]
[337332247,1725607847295,-500.0,0.00019983,2]
[337332248,1725607847305,-335.44140755,0.00019983,2]
[337332249,1725607847315,-500.0,0.00019983,2]
[337332250,1725607847324,-500.0,0.00019983,2]
[337332251,1725607847334,-500.0,0.00019983,2]
[337332252,1725607847343,-500.0,0.00019983,2]
[337332253,1725607847353,-500.0,0.00019983,2]
[337332254,1725607847363,-500.0,0.00019984,2]
[337332255,1725607847372,-500.0,0.00019984,2]
[337332256,1725607847382,-504.72078525,0.00019984,2]
[337332257,1725607847391,-500.0,0.00019984,2]
[337332258,1725607847400,-500.0,0.00019984,2]
[337332259,1725607847412,-500.0,0.00019984,2]
[337332260,1725607847421,-500.0,0.00019984,2]
[337332261,1725607847431,-569.17,0.00019992,2]
[337332262,1725607847440,-569.17,0.00019992,2]
[337332263,1725607847450,-569.17,0.00019992,2]
[337332264,1725607847459,-500.0,0.00019993,2]
[337332265,1725607847469,-500.0,0.00019993,2]
[337332266,1725607847478,-500.0,0.00019993,2]
[337332267,1725607847488,-500.0,0.00019993,2]
[337332268,1725607847498,-500.0,0.00019993,2]
[337332269,1725607847507,-500.0,0.00019993,2]
[337332270,1725607847517,-569.17,0.00019993,2]
[337332271,1725607847527,-569.17,0.00019993,2]
[337332272,1725607847538,-569.17,0.00019993,2]
[337332273,1725607847548,-569.17,0.00019993,2]
[337332274,1725607847558,-569.17,0.00019993,2]
[337332275,1725607847567,-310.6487372,0.00019994,2]
[337332276,1725607847578,-500.0,0.00019994,2]
[337332277,1725607847587,-500.0,0.00019994,2]
[337332278,1725607847597,-500.0,0.00019994,2]
[337332279,1725607847606,-500.0,0.00019994,2]
[337332280,1725607847616,-500.0,0.00019994,2]
[337332281,1725607847626,-500.0,0.00019994,2]
[337332282,1725607847636,-500.0,0.00019994,2]
[337332283,1725607847646,-500.0,0.00019994,2]
[337332284,1725607847656,-500.0,0.00019994,2]
[337332285,1725607847666,-500.0,0.00019994,2]
[337332286,1725607847676,-500.0,0.00019994,2]
[337332287,1725607847686,-500.0,0.00019994,2]
[337332288,1725607847696,-500.0,0.00019994,2]
[337332289,1725607847706,-500.0,0.00019994,2]
[337332290,1725607847716,-500.0,0.00019994,2]
[337332291,1725607847725,-500.0,0.00019994,2]
[337332292,1725607847735,-214.69227494,0.00019994,2]
[337332293,1725607847744,-500.0,0.00019994,2]
[337332294,1725607847754,-500.0,0.00019994,2]
[337332295,1725607847764,-500.0,0.00019994,2]
[337332296,1725607847775,-500.0,0.00019994,2]
[337332297,1725607847784,-500.0,0.00019994,2]
[337332298,1725607847794,-500.0,0.00019994,2]
[337332299,1725607847804,-500.0,0.00019994,2]
[337332300,1725607847813,-614.85,0.00019994,2]
[337332301,1725607847823,-500.0,0.00019994,2]
[337332302,1725607847832,-500.0,0.00019994,2]
[337332303,1725607847842,-500.0,0.00019994,2]
[337332304,1725607847851,-500.0,0.00019994,2]
[337332305,1725607847861,-500.0,0.00019994,2]
[337332306,1725607847871,-500.0,0.00019994,2]
[337332307,1725607847880,-500.0,0.00019994,2]
[337332308,1725607847891,-500.0,0.00019994,2]
[337332309,1725607847900,-500.0,0.00019994,2]
[337332310,1725607847911,-500.0,0.00019994,2]
[337332311,1725607847922,-512.37672864,0.00019994,2]
[337332312,1725607847932,-500.0,0.00019994,2]
[337332313,1725607847945,-500.0,0.00019994,2]
[337332314,1725607847957,-500.0,0.00019994,2]
[337332315,1725607847967,-543.72403102,0.00019994,2]
[337332316,1725607847977,-500.0,0.00019994,2]
[337332317,1725607847987,-500.0,0.00019994,2]
[337332318,1725607847996,-366.61949301,0.00019994,2]
[337332319,1725607848006,-500.0,0.00019994,2]
[337332320,1725607848016,-724.56,0.00019994,2]
[337332321,1725607848027,-500.0,0.00019994,2]
[337332322,1725607848036,-645.57,0.00019994,2]
[337332323,1725607848046,-500.0,0.00019994,2]
[337332324,1725607848057,-500.0,0.00019994,2]
[337332325,1725607848066,-500.0,0.00019994,2]
[337332326,1725607848077,-501.00727206,0.00019994,2]
[337332327,1725607848086,-200.3738183,0.00019994,2]
[337332328,1725607848096,-500.0,0.00019994,2]
[337332329,1725607848105,-506.7206231,0.00019994,2]
[337332330,1725607848114,-500.0,0.00019994,2]
[337332331,1725607848124,-500.0,0.00019994,2]
[337332332,1725607848133,-500.0,0.00019994,2]
[337332333,1725607848142,-728.32,0.00019994,2]
[337332334,1725607848152,-500.0,0.00019994,2]
[337332335,1725607848163,-516.82223619,0.00019994,2]
[337332336,1725607848173,-500.0,0.00019994,2]
[337332337,1725607848183,-501.87016284,0.00019994,2]
[337332338,1725607848192,-505.8867738,0.00019994,2]
[337332339,1725607848202,-500.0,0.00019994,2]
[337332340,1725607848212,-500.0,0.00019994,2]
[337332341,1725607848222,-506.14134464,0.00019994,2]
[337332342,1725607848231,-501.20539999,0.00019994,2]
[337332343,1725607848240,-665.18,0.00019994,2]
[337332344,1725607848250,-517.94922226,0.00019994,2]
[337332345,1725607848259,-500.0,0.00019994,2]
[337332346,1725607848268,-500.0,0.00019994,2]
[337332347,1725607848277,-500.0,0.00019994,2]
[337332348,1725607848286,-500.0,0.00019994,2]
[337332349,1725607848296,-500.0,0.00019994,2]
[337332350,1725607848306,-500.0,0.00019994,2]
[337332351,1725607848314,-500.0,0.00019994,2]
[337332352,1725607848324,-500.0,0.00019994,2]
[337332353,1725607848334,-500.0,0.00019994,2]
[337332354,1725607848343,-504.74871431,0.00019994,2]
[337332355,1725607848352,-500.0,0.00019994,2]
[337332356,1725607848361,-500.0,0.00019994,2]
[337332357,1725607848370,-500.0,0.00019994,2]
[337332358,1725607848380,-500.0,0.00019994,2]
[337332359,1725607848389,-500.0,0.00019994,2]
[337332360,1725607848398,-379.76151572,0.00019994,2]
[337332361,1725607848409,-500.0,0.00019994,2]
[337332362,1725607848418,-500.0,0.00019994,2]
[337332363,1725607848428,-500.23447048,0.00019994,2]
[337332364,1725607848437,-153.91042465,0.00019994,2]
[337332365,1725607848447,-500.0,0.00019994,2]
[337332366,1725607848456,-500.0,0.00019994,2]
[337332367,1725607848466,-500.0,0.00019994,2]
[337332368,1725607848475,-500.0,0.00019994,2]
[337332369,1725607848484,-500.0,0.00019994,2]
[337332370,1725607848494,-500.0,0.00019994,2]
[337332371,1725607848503,-500.0,0.00019994,2]
[337332372,1725607848512,-500.0,0.00019994,2]
[337332373,1725607848521,-500.0,0.00019994,2]
[337332374,1725607848532,-1488.29,0.00019994,2]
[337332375,1725607848541,-500.0,0.00019994,2]
[337332376,1725607848550,-500.0,0.00019994,2]
[337332377,1725607848560,-576.37,0.00019994,2]
[337332378,1725607848569,-500.0,0.00019994,2]
[337332379,1725607848578,-500.0,0.00019994,2]
[337332380,1725607848587,-500.0,0.00019994,2]
[337332381,1725607848596,-500.0,0.00019994,2]
[337332382,1725607848605,-504.2761518,0.00019994,2]
[337332383,1725607848614,-500.0,0.00019994,2]
[337332384,1725607848623,-353.79637034,0.00019994,2]
[337332385,1725607848633,-500.0,0.00019994,2]
[337332386,1725607848642,-500.0,0.00019994,2]
[337332387,1725607848651,-500.0,0.00019994,2]
[337332388,1725607848663,-500.0,0.00019994,2]
[337332389,1725607848672,-500.0,0.00019994,2]
[337332390,1725607848682,-500.0,0.00019994,2]
[337332391,1725607848691,-500.0,0.00019994,2]
[337332392,1725607848701,-500.0,0.00019994,2]
[337332393,1725607848711,-500.0,0.00019994,2]
[337332394,1725607848720,-500.0,0.00019994,2]
[337332395,1725607848730,-504.99450898,0.00019994,2]
[337332396,1725607848740,-500.0,0.00019994,2]
[337332397,1725607848749,-500.0,0.00019994,2]
[337332398,1725607848759,-820.37,0.00019994,2]
[337332399,1725607848768,-500.0,0.00019994,2]
[337332400,1725607848890,-502.74941922,0.00019994,2]
[337332401,1725607848899,-500.0,0.00019994,2]
[337332402,1725607848910,-500.0,0.00019994,2]
[337332403,1725607848919,-286.73687181,0.00019994,2]
[337332404,1725607848928,-500.0,0.00019994,2]
[337332405,1725607848938,-500.0,0.00019994,2]
[337332406,1725607848951,-500.0,0.00019994,2]
[337332407,1725607848961,-500.0,0.00019994,2]
[337332408,1725607848971,-260.04999977,0.00019994,2]
[337332409,1725607848980,-500.0,0.00019994,2]
[337332410,1725607848990,-503.67716501,0.00019994,2]
[337332411,1725607849000,-437.59639142,0.00019994,2]
[337332412,1725607849273,-392.86662163,0.00019972,2]
[337332413,1725607849293,-107.13337837,0.00019972,2]
[337332414,1725607849303,-194.10873837,0.00019981,2]
[337332415,1725607866359,501.19962506,0.00019894,2]
[337332416,1725607942211,5051.7574987,0.00018975,2]
[337332417,1725607967645,3567.44716948,0.00019863,2]
[337332420,1725608146176,181.826953,0.00019178,2]
[337332422,1725608350934,786.09042972,0.00019858,2]
[337332423,1725608479534,438.54967191,0.00019852,2]
[337332424,1725608750298,150.0,0.0001961,2]
[337332425,1725608750491,4920.04197298,0.00019452,2]
[337332428,1725608873062,707.48138673,0.00019858,2]
[337332449,1725609019095,76585.03619694,0.00019743,2]
[337332595,1725609038122,-419.54,0.00019733,3]
[337332596,1725609038132,-194944.9126478,0.00019743,2]
[337332597,1725609038142,-150.0,0.00019938,2]